[Event "Titled Tuesday Blitz June 6 Late 2023"]
[White "Smiechu"]
[Black "Amburgy, Ryan"]
[BlackFideId "30924820"]
[WhiteElo "2382"]
[BlackElo "2134"]
[Result "0-1"]
[Round "1"]
[TimeControl "180+2"]
[Date "2023.06.07"]
[WhiteClock "0:00:11"]
[BlackClock "0:00:40"]
[Board "103"]

1. e4 {[%clk 0:02:59]}  e5 {[%clk 0:02:59]} 2. Nf3 {[%clk 0:02:58]}  Nc6 {[%clk 0:02:59]} 3. d4 {[%clk 0:02:59]}  exd4 {[%clk 0:03:00]} 4. Nxd4 {[%clk 0:02:59]}  Nf6 {[%clk 0:03:00]} 5. Nxc6 {[%clk 0:02:58]}  bxc6 {[%clk 0:03:01]} 6. e5 {[%clk 0:02:58]}  Qe7 {[%clk 0:03:01]} 7. Qe2 {[%clk 0:02:59]}  Nd5 {[%clk 0:03:02]} 8. c4 {[%clk 0:02:59]}  Nb6 {[%clk 0:03:02]} 9. Nc3 {[%clk 0:02:58]}  a5 {[%clk 0:03:02]} 10. f4 {[%clk 0:02:51]}  a4 {[%clk 0:02:58]} 11. Qe4 {[%clk 0:02:49]}  Ba6 {[%clk 0:02:45]} 12. Be2 {[%clk 0:02:27]}  g6 {[%clk 0:02:21]} 13. O-O {[%clk 0:02:25]}  Bxc4 {[%clk 0:02:11]} 14. Bxc4 {[%clk 0:02:20]}  Qc5+ {[%clk 0:02:11]} 15. Be3 {[%clk 0:02:14]}  Qxc4 {[%clk 0:02:11]} 16. Bxb6 {[%clk 0:01:48]}  Qxe4 {[%clk 0:02:11]} 17. Nxe4 {[%clk 0:01:48]}  cxb6 {[%clk 0:02:12]} 18. Nf6+ {[%clk 0:01:46]}  Ke7 {[%clk 0:02:12]} 19. Rfd1 {[%clk 0:01:37]}  Ra7 {[%clk 0:02:09]} 20. Ne4 {[%clk 0:01:26]}  Bg7 {[%clk 0:01:59]} 21. Rd3 {[%clk 0:01:12]}  Rf8 {[%clk 0:01:30]} 22. Rad1 {[%clk 0:00:57]}  f6 {[%clk 0:01:30]} 23. Nd6 {[%clk 0:00:43]}  fxe5 {[%clk 0:01:28]} 24. fxe5 {[%clk 0:00:44]}  Ke6 {[%clk 0:01:15]} 25. Re1 {[%clk 0:00:30]}  Rf4 {[%clk 0:01:12]} 26. g3 {[%clk 0:00:26]}  Rb4 {[%clk 0:01:08]} 27. a3 {[%clk 0:00:23]}  Rb3 {[%clk 0:01:05]} 28. Rd4 {[%clk 0:00:21]}  c5 {[%clk 0:00:58]} 29. Rd2 {[%clk 0:00:20]}  Bh6 {[%clk 0:00:58]} 30. Rdd1 {[%clk 0:00:20]}  b5 {[%clk 0:00:54]} 31. Ne4 {[%clk 0:00:19]}  Rc7 {[%clk 0:00:52]} 32. Rd6+ {[%clk 0:00:16]}  Ke7 {[%clk 0:00:53]} 33. Rf1 {[%clk 0:00:16]}  Re3 {[%clk 0:00:47]} 34. Nf6 {[%clk 0:00:14]}  Rxe5 {[%clk 0:00:44]} 35. Rfd1 {[%clk 0:00:12]}  Be3+ {[%clk 0:00:43]} 36. Kg2 {[%clk 0:00:12]}  Bd4 {[%clk 0:00:44]} 37. Ra6 {[%clk 0:00:11]}  Re2+ {[%clk 0:00:41]} 38. Kh3 {[%clk 0:00:11]}  Bxf6 {[%clk 0:00:40]} 0-1


[Site "https://www.chess.com"]

[Event "Titled Tuesday Blitz June 6 Late 2023"]
[White "Blohberger, Felix"]
[Black "Rama, Tejas"]
[WhiteFideId "1632051"]
[BlackFideId "30907381"]
[WhiteElo "2435"]
[BlackElo "2089"]
[Result "1-0"]
[Round "1"]
[TimeControl "180+2"]
[Date "2023.06.07"]
[WhiteClock "0:01:13"]
[BlackClock "0:01:11"]
[Board "104"]

1. d4 {[%clk 0:02:52]}  Nf6 {[%clk 0:02:58]} 2. c4 {[%clk 0:02:53]}  e6 {[%clk 0:02:58]} 3. Nc3 {[%clk 0:02:53]}  Bb4 {[%clk 0:02:58]} 4. e3 {[%clk 0:02:51]}  O-O {[%clk 0:02:57]} 5. Bd3 {[%clk 0:02:50]}  d5 {[%clk 0:02:54]} 6. cxd5 {[%clk 0:02:48]}  exd5 {[%clk 0:02:47]} 7. a3 {[%clk 0:02:47]}  Bxc3+ {[%clk 0:02:40]} 8. bxc3 {[%clk 0:02:46]}  c5 {[%clk 0:02:41]} 9. Ne2 {[%clk 0:02:46]}  Nc6 {[%clk 0:02:39]} 10. O-O {[%clk 0:02:38]}  b6 {[%clk 0:02:33]} 11. f3 {[%clk 0:02:32]}  Re8 {[%clk 0:02:29]} 12. Ng3 {[%clk 0:02:28]}  cxd4 {[%clk 0:02:17]} 13. cxd4 {[%clk 0:02:17]}  Na5 {[%clk 0:02:16]} 14. Ra2 {[%clk 0:02:15]}  Bd7 {[%clk 0:02:14]} 15. Re2 {[%clk 0:02:09]}  Bc6 {[%clk 0:01:53]} 16. Nf5 {[%clk 0:02:03]}  Qd7 {[%clk 0:01:52]} 17. Qe1 {[%clk 0:01:52]}  Bb5 {[%clk 0:01:47]} 18. Bxb5 {[%clk 0:01:41]}  Qxb5 {[%clk 0:01:48]} 19. Nd6 {[%clk 0:01:31]}  Qa4 {[%clk 0:01:35]} 20. Nxe8 {[%clk 0:01:26]}  Rxe8 {[%clk 0:01:35]} 21. Kh1 {[%clk 0:01:24]}  Nc4 {[%clk 0:01:32]} 22. e4 {[%clk 0:01:21]}  Rd8 {[%clk 0:01:20]} 23. Bg5 {[%clk 0:01:17]}  Nxa3 {[%clk 0:01:11]} 24. e5 {[%clk 0:01:13]} 1-0


[Site "https://www.chess.com"]

[Event "Titled Tuesday Blitz June 6 Late 2023"]
[White "Lalanne, Pablo"]
[Black "Belov, Alexei"]
[WhiteFideId "112151"]
[BlackFideId "4128206"]
[WhiteElo "2120"]
[BlackElo "2659"]
[Result "1-0"]
[Round "1"]
[TimeControl "180+2"]
[Date "2023.06.07"]
[WhiteClock "0:00:19"]
[BlackClock "0:01:04"]
[Board "105"]

1. e4 {[%clk 0:02:58]}  e6 {[%clk 0:03:00]} 2. d4 {[%clk 0:02:58]}  d5 {[%clk 0:02:59]} 3. Nd2 {[%clk 0:02:58]}  Nf6 {[%clk 0:02:58]} 4. e5 {[%clk 0:02:59]}  Nfd7 {[%clk 0:02:59]} 5. Bd3 {[%clk 0:02:58]}  c5 {[%clk 0:03:00]} 6. c3 {[%clk 0:02:59]}  Nc6 {[%clk 0:03:00]} 7. Ne2 {[%clk 0:02:59]}  f6 {[%clk 0:03:00]} 8. exf6 {[%clk 0:02:59]}  Nxf6 {[%clk 0:03:01]} 9. Nf3 {[%clk 0:02:56]}  Bd6 {[%clk 0:03:01]} 10. O-O {[%clk 0:02:55]}  Qc7 {[%clk 0:03:01]} 11. Bg5 {[%clk 0:02:54]}  O-O {[%clk 0:03:01]} 12. Bh4 {[%clk 0:02:55]}  Bd7 {[%clk 0:03:01]} 13. Bg3 {[%clk 0:02:54]}  b6 {[%clk 0:03:02]} 14. Re1 {[%clk 0:02:36]}  Rae8 {[%clk 0:03:01]} 15. h3 {[%clk 0:02:32]}  e5 {[%clk 0:03:01]} 16. dxe5 {[%clk 0:02:29]}  Nxe5 {[%clk 0:03:02]} 17. Nxe5 {[%clk 0:02:29]}  Bxe5 {[%clk 0:03:02]} 18. Bxe5 {[%clk 0:02:23]}  Rxe5 {[%clk 0:03:03]} 19. Ng3 {[%clk 0:02:20]}  Rfe8 {[%clk 0:03:02]} 20. Qd2 {[%clk 0:02:18]}  g6 {[%clk 0:03:00]} 21. Rxe5 {[%clk 0:01:57]}  Qxe5 {[%clk 0:03:00]} 22. Kf1 {[%clk 0:01:49]}  Kg7 {[%clk 0:02:59]} 23. Re1 {[%clk 0:01:48]}  Qxe1+ {[%clk 0:02:58]} 24. Qxe1 {[%clk 0:01:49]}  Rxe1+ {[%clk 0:02:58]} 25. Kxe1 {[%clk 0:01:50]}  Ne8 {[%clk 0:02:44]} 26. Kd2 {[%clk 0:01:37]}  Kf6 {[%clk 0:02:44]} 27. f4 {[%clk 0:01:33]}  Nd6 {[%clk 0:02:40]} 28. Ke3 {[%clk 0:01:30]}  h5 {[%clk 0:02:30]} 29. Nf1 {[%clk 0:01:23]}  h4 {[%clk 0:02:29]} 30. Nd2 {[%clk 0:01:23]}  Bc6 {[%clk 0:01:57]} 31. Nf3 {[%clk 0:01:17]}  d4+ {[%clk 0:01:49]} 32. cxd4 {[%clk 0:01:16]}  cxd4+ {[%clk 0:01:48]} 33. Kxd4 {[%clk 0:01:05]}  Bxf3 {[%clk 0:01:47]} 34. gxf3 {[%clk 0:01:06]}  Ne8 {[%clk 0:01:38]} 35. Kd5 {[%clk 0:00:53]}  Ng7 {[%clk 0:01:36]} 36. Kc6 {[%clk 0:00:36]}  Ne6 {[%clk 0:01:36]} 37. f5 {[%clk 0:00:30]}  gxf5 {[%clk 0:01:35]} 38. Bf1 {[%clk 0:00:25]}  Ke5 {[%clk 0:01:20]} 39. Kb7 {[%clk 0:00:25]}  Kf4 {[%clk 0:01:20]} 40. Kxa7 {[%clk 0:00:23]}  Kxf3 {[%clk 0:01:20]} 41. Kxb6 {[%clk 0:00:23]}  Kf2 {[%clk 0:01:20]} 42. Bd3 {[%clk 0:00:23]}  f4 {[%clk 0:01:18]} 43. a4 {[%clk 0:00:22]}  Ng5 {[%clk 0:01:17]} 44. a5 {[%clk 0:00:20]}  Ke3 {[%clk 0:01:17]} 45. Bf1 {[%clk 0:00:19]}  Kf2 {[%clk 0:01:15]} 46. Bc4 {[%clk 0:00:19]}  f3 {[%clk 0:01:11]} 47. a6 {[%clk 0:00:20]}  Kg3 {[%clk 0:01:08]} 48. a7 {[%clk 0:00:20]}  Nxh3 {[%clk 0:01:06]} 49. a8=Q {[%clk 0:00:20]}  Nf4 {[%clk 0:01:07]} 50. Qe4 {[%clk 0:00:19]}  h3 {[%clk 0:01:06]} 51. Bd5 {[%clk 0:00:18]}  Nxd5+ {[%clk 0:01:05]} 52. Qxd5 {[%clk 0:00:19]}  h2 {[%clk 0:01:06]} 53. Qg5+ {[%clk 0:00:19]}  Kf2 {[%clk 0:01:06]} 54. Qh4+ {[%clk 0:00:19]}  Kg2 {[%clk 0:01:06]} 55. Qg4+ {[%clk 0:00:20]}  Kf2 {[%clk 0:01:06]} 56. Qh3 {[%clk 0:00:20]}  Kg1 {[%clk 0:01:03]} 57. Qxf3 {[%clk 0:00:18]}  h1=Q {[%clk 0:01:03]} 58. Qxh1+ {[%clk 0:00:19]}  Kxh1 {[%clk 0:01:04]} 59. b4 {[%clk 0:00:19]} 1-0


[Site "https://www.chess.com"]

[Event "Titled Tuesday Blitz June 6 Late 2023"]
[White "Tatarinov, Dmitry"]
[Black "Mazurkiewicz, Michal"]
[WhiteFideId "24160067"]
[BlackFideId "1124943"]
[WhiteElo "2326"]
[BlackElo "2063"]
[Result "1-0"]
[Round "1"]
[TimeControl "180+2"]
[Date "2023.06.07"]
[WhiteClock "0:01:01"]
[BlackClock "0:00:01"]
[Board "106"]

1. e4 {[%clk 0:03:00]}  d6 {[%clk 0:02:59]} 2. Nf3 {[%clk 0:02:59]}  Nf6 {[%clk 0:02:59]} 3. d4 {[%clk 0:03:00]}  c6 {[%clk 0:02:59]} 4. Nc3 {[%clk 0:02:59]}  Bg4 {[%clk 0:02:59]} 5. a4 {[%clk 0:02:59]}  e6 {[%clk 0:02:58]} 6. h3 {[%clk 0:02:59]}  Bh5 {[%clk 0:02:58]} 7. g4 {[%clk 0:02:59]}  Bg6 {[%clk 0:02:59]} 8. Bd3 {[%clk 0:02:56]}  d5 {[%clk 0:02:59]} 9. e5 {[%clk 0:02:54]}  Nfd7 {[%clk 0:02:59]} 10. a5 {[%clk 0:02:45]}  c5 {[%clk 0:02:57]} 11. Ne2 {[%clk 0:02:39]}  Nc6 {[%clk 0:02:57]} 12. a6 {[%clk 0:02:35]}  b6 {[%clk 0:02:52]} 13. Bb5 {[%clk 0:02:29]}  Rc8 {[%clk 0:02:50]} 14. c3 {[%clk 0:02:29]}  Be4 {[%clk 0:02:45]} 15. Ng3 {[%clk 0:02:25]}  cxd4 {[%clk 0:02:44]} 16. Nxe4 {[%clk 0:02:24]}  dxe4 {[%clk 0:02:41]} 17. Nxd4 {[%clk 0:02:24]}  Nxd4 {[%clk 0:02:36]} 18. Qxd4 {[%clk 0:02:21]}  Bc5 {[%clk 0:02:30]} 19. Qxe4 {[%clk 0:02:21]}  O-O {[%clk 0:02:30]} 20. Bf4 {[%clk 0:02:16]}  Qc7 {[%clk 0:02:18]} 21. Rd1 {[%clk 0:02:15]}  Bxf2+ {[%clk 0:02:09]} 22. Kxf2 {[%clk 0:02:07]}  Qc5+ {[%clk 0:02:09]} 23. Qd4 {[%clk 0:02:08]}  Qxb5 {[%clk 0:02:08]} 24. Qxd7 {[%clk 0:02:08]}  Qxb2+ {[%clk 0:02:08]} 25. Rd2 {[%clk 0:02:04]}  Qxc3 {[%clk 0:02:08]} 26. Qd3 {[%clk 0:01:55]}  Qa5 {[%clk 0:02:08]} 27. Rhd1 {[%clk 0:01:53]}  Rc3 {[%clk 0:02:05]} 28. Qd6 {[%clk 0:01:39]}  Qa4 {[%clk 0:01:41]} 29. Rd4 {[%clk 0:01:31]}  Rc2+ {[%clk 0:00:48]} 30. R1d2 {[%clk 0:01:29]}  Rxd2+ {[%clk 0:00:48]} 31. Bxd2 {[%clk 0:01:29]}  Qxa6 {[%clk 0:00:48]} 32. Bb4 {[%clk 0:01:27]}  Re8 {[%clk 0:00:42]} 33. Qd7 {[%clk 0:01:21]}  Qc8 {[%clk 0:00:28]} 34. Qxc8 {[%clk 0:01:21]}  Rxc8 {[%clk 0:00:29]} 35. Rd7 {[%clk 0:01:22]}  a5 {[%clk 0:00:29]} 36. Bd6 {[%clk 0:01:21]}  h5 {[%clk 0:00:19]} 37. Rb7 {[%clk 0:01:16]}  Rc3 {[%clk 0:00:10]} 38. Kg2 {[%clk 0:01:10]}  hxg4 {[%clk 0:00:07]} 39. hxg4 {[%clk 0:01:10]}  Rb3 {[%clk 0:00:06]} 40. Bc7 {[%clk 0:01:08]}  a4 {[%clk 0:00:04]} 41. Rxb6 {[%clk 0:01:05]}  Rxb6 {[%clk 0:00:04]} 42. Bxb6 {[%clk 0:01:06]}  a3 {[%clk 0:00:04]} 43. Bd4 {[%clk 0:01:07]}  Kh7 {[%clk 0:00:03]} 44. Kf3 {[%clk 0:01:07]}  Kg6 {[%clk 0:00:04]} 45. Kf4 {[%clk 0:01:07]}  f6 {[%clk 0:00:04]} 46. Ba1 {[%clk 0:01:07]}  a2 {[%clk 0:00:04]} 47. Bb2 {[%clk 0:01:08]}  Kf7 {[%clk 0:00:04]} 48. Kg3 {[%clk 0:01:02]}  Kg6 {[%clk 0:00:05]} 49. Kh4 {[%clk 0:01:03]}  Kf7 {[%clk 0:00:05]} 50. Kh5 {[%clk 0:01:03]}  f5 {[%clk 0:00:01]} 51. gxf5 {[%clk 0:01:01]}  exf5 {[%clk 0:00:01]} 52. Kg5 {[%clk 0:01:01]} 1-0


[Site "https://www.chess.com"]

[Event "Titled Tuesday Blitz June 6 Late 2023"]
[White "Stachanczyk, Jacek"]
[Black "Ibadov, Dashgyn"]
[WhiteFideId "1116657"]
[BlackFideId "24107514"]
[WhiteElo "2084"]
[BlackElo "2208"]
[Result "0-1"]
[Round "1"]
[TimeControl "180+2"]
[Date "2023.06.07"]
[WhiteClock "0:01:06"]
[BlackClock "0:00:56"]
[Board "107"]

1. e4 {[%clk 0:02:59]}  e6 {[%clk 0:02:58]} 2. d4 {[%clk 0:02:58]}  d5 {[%clk 0:02:59]} 3. Nc3 {[%clk 0:02:57]}  Nf6 {[%clk 0:02:58]} 4. e5 {[%clk 0:02:57]}  Nfd7 {[%clk 0:02:58]} 5. f4 {[%clk 0:02:57]}  c5 {[%clk 0:02:58]} 6. Nf3 {[%clk 0:02:58]}  Nc6 {[%clk 0:02:59]} 7. Be3 {[%clk 0:02:58]}  cxd4 {[%clk 0:02:59]} 8. Nxd4 {[%clk 0:02:57]}  Bc5 {[%clk 0:03:00]} 9. Qd2 {[%clk 0:02:58]}  O-O {[%clk 0:03:01]} 10. O-O-O {[%clk 0:02:57]}  a6 {[%clk 0:03:01]} 11. Qf2 {[%clk 0:02:43]}  Bxd4 {[%clk 0:02:56]} 12. Bxd4 {[%clk 0:02:44]}  b5 {[%clk 0:02:57]} 13. Bd3 {[%clk 0:02:43]}  b4 {[%clk 0:02:55]} 14. Ne2 {[%clk 0:02:36]}  a5 {[%clk 0:02:45]} 15. Qh4 {[%clk 0:02:34]}  g6 {[%clk 0:02:45]} 16. Qh6 {[%clk 0:02:24]}  b3 {[%clk 0:02:15]} 17. axb3 {[%clk 0:02:08]}  a4 {[%clk 0:02:14]} 18. bxa4 {[%clk 0:02:09]}  Rxa4 {[%clk 0:02:06]} 19. b3 {[%clk 0:02:08]}  Rxd4 {[%clk 0:01:56]} 20. Nxd4 {[%clk 0:02:07]}  Nxd4 {[%clk 0:01:57]} 21. Bxg6 {[%clk 0:01:59]}  Nxb3+ {[%clk 0:01:54]} 22. cxb3 {[%clk 0:01:58]}  fxg6 {[%clk 0:01:54]} 23. Rd3 {[%clk 0:01:55]}  Nc5 {[%clk 0:01:41]} 24. Rh3 {[%clk 0:01:54]}  Rf7 {[%clk 0:01:40]} 25. Kb2 {[%clk 0:01:49]}  Ba6 {[%clk 0:01:36]} 26. Ra1 {[%clk 0:01:46]}  Nd3+ {[%clk 0:01:27]} 27. Kc3 {[%clk 0:01:41]}  Nxf4 {[%clk 0:01:15]} 28. Rf3 {[%clk 0:01:16]}  Qc7+ {[%clk 0:01:15]} 29. Kd2 {[%clk 0:01:13]}  Qxe5 {[%clk 0:01:11]} 30. Rxa6 {[%clk 0:01:09]}  Qe2+ {[%clk 0:01:11]} 31. Kc3 {[%clk 0:01:06]}  Rc7+ {[%clk 0:00:57]} 32. Kd4 {[%clk 0:01:06]}  e5# {[%clk 0:00:56]} 0-1


[Site "https://www.chess.com"]

[Event "Titled Tuesday Blitz June 6 Late 2023"]
[White "Zhurbinsky, David"]
[Black "Manon-og, Ramon Jr."]
[WhiteFideId "2072904"]
[BlackFideId "5200776"]
[WhiteElo "2654"]
[BlackElo "2371"]
[Result "1-0"]
[Round "1"]
[TimeControl "180+2"]
[Date "2023.06.07"]
[WhiteClock "0:00:15"]
[BlackClock "0:01:07"]
[Board "108"]

1. e4 {[%clk 0:03:00]}  c5 {[%clk 0:02:59]} 2. Nf3 {[%clk 0:03:00]}  d6 {[%clk 0:02:59]} 3. d4 {[%clk 0:03:00]}  cxd4 {[%clk 0:03:00]} 4. Nxd4 {[%clk 0:03:01]}  Nf6 {[%clk 0:02:59]} 5. f3 {[%clk 0:03:00]}  a6 {[%clk 0:02:59]} 6. c4 {[%clk 0:03:00]}  e6 {[%clk 0:03:00]} 7. Nc3 {[%clk 0:03:00]}  Be7 {[%clk 0:03:00]} 8. Be3 {[%clk 0:03:01]}  O-O {[%clk 0:03:01]} 9. Be2 {[%clk 0:03:02]}  Nc6 {[%clk 0:03:00]} 10. O-O {[%clk 0:03:02]}  Bd7 {[%clk 0:03:00]} 11. Rc1 {[%clk 0:03:02]}  Rc8 {[%clk 0:03:00]} 12. Qd2 {[%clk 0:03:02]}  Ne5 {[%clk 0:03:00]} 13. b3 {[%clk 0:03:02]}  h6 {[%clk 0:02:53]} 14. h3 {[%clk 0:03:00]}  Nh5 {[%clk 0:02:52]} 15. f4 {[%clk 0:02:59]}  Ng3 {[%clk 0:02:52]} 16. fxe5 {[%clk 0:02:54]}  dxe5 {[%clk 0:02:49]} 17. Nf3 {[%clk 0:02:35]}  Nxf1 {[%clk 0:02:49]} 18. Bxf1 {[%clk 0:02:31]}  Qc7 {[%clk 0:02:47]} 19. Qf2 {[%clk 0:02:23]}  Bc6 {[%clk 0:02:37]} 20. Qg3 {[%clk 0:02:17]}  Kh8 {[%clk 0:02:34]} 21. Qxe5 {[%clk 0:02:10]}  Bd6 {[%clk 0:02:30]} 22. Qh5 {[%clk 0:02:07]}  Bf4 {[%clk 0:02:27]} 23. Bxf4 {[%clk 0:01:52]}  Qxf4 {[%clk 0:02:28]} 24. Re1 {[%clk 0:01:53]}  Rcd8 {[%clk 0:02:25]} 25. Qe5 {[%clk 0:01:49]}  Qxe5 {[%clk 0:02:11]} 26. Nxe5 {[%clk 0:01:50]}  Rd2 {[%clk 0:02:11]} 27. Re3 {[%clk 0:01:34]}  Rc2 {[%clk 0:02:04]} 28. Be2 {[%clk 0:01:28]}  Kg8 {[%clk 0:02:01]} 29. Nxc6 {[%clk 0:01:10]}  bxc6 {[%clk 0:02:01]} 30. Rd3 {[%clk 0:01:09]}  g6 {[%clk 0:01:39]} 31. Kf2 {[%clk 0:01:03]}  Kg7 {[%clk 0:01:40]} 32. Ke3 {[%clk 0:01:01]}  a5 {[%clk 0:01:40]} 33. Bf3 {[%clk 0:00:54]}  h5 {[%clk 0:01:36]} 34. e5 {[%clk 0:00:53]}  c5 {[%clk 0:01:35]} 35. Ne4 {[%clk 0:00:49]}  Rxa2 {[%clk 0:01:33]} 36. Nxc5 {[%clk 0:00:49]}  Rc8 {[%clk 0:01:32]} 37. Nb7 {[%clk 0:00:42]}  a4 {[%clk 0:01:31]} 38. bxa4 {[%clk 0:00:39]}  Rxa4 {[%clk 0:01:32]} 39. c5 {[%clk 0:00:38]}  Rc7 {[%clk 0:01:26]} 40. c6 {[%clk 0:00:38]}  Rb4 {[%clk 0:01:26]} 41. Rd7 {[%clk 0:00:33]}  Rc8 {[%clk 0:01:25]} 42. Nd6 {[%clk 0:00:31]}  Rf8 {[%clk 0:01:21]} 43. c7 {[%clk 0:00:30]}  Rb3+ {[%clk 0:01:17]} 44. Kd2 {[%clk 0:00:28]}  g5 {[%clk 0:01:12]} 45. Rxf7+ {[%clk 0:00:16]}  Rxf7 {[%clk 0:01:10]} 46. Nxf7 {[%clk 0:00:16]}  Rb2+ {[%clk 0:01:08]} 47. Kc1 {[%clk 0:00:16]}  Kxf7 {[%clk 0:01:05]} 48. Kxb2 {[%clk 0:00:15]}  g4 {[%clk 0:01:05]} 49. hxg4 {[%clk 0:00:16]}  hxg4 {[%clk 0:01:06]} 50. Bxg4 {[%clk 0:00:16]}  Kg6 {[%clk 0:01:05]} 51. Bxe6 {[%clk 0:00:16]}  Kg5 {[%clk 0:01:06]} 52. c8=Q {[%clk 0:00:16]}  Kf4 {[%clk 0:01:07]} 53. Qc5 {[%clk 0:00:15]} 1-0


[Site "https://www.chess.com"]

[Event "Titled Tuesday Blitz June 6 Late 2023"]
[White "sebastianmarinp"]
[Black "Papp, Levente"]
[BlackFideId "751243"]
[WhiteElo "2370"]
[BlackElo "2380"]
[Result "0-1"]
[Round "1"]
[TimeControl "180+2"]
[Date "2023.06.07"]
[WhiteClock "0:00:14"]
[BlackClock "0:01:26"]
[Board "109"]

1. e4 {[%clk 0:02:59]}  e6 {[%clk 0:02:57]} 2. d4 {[%clk 0:02:58]}  d5 {[%clk 0:02:57]} 3. Nc3 {[%clk 0:02:58]}  Bb4 {[%clk 0:02:55]} 4. e5 {[%clk 0:02:57]}  Ne7 {[%clk 0:02:54]} 5. a3 {[%clk 0:02:57]}  Bxc3+ {[%clk 0:02:54]} 6. bxc3 {[%clk 0:02:58]}  b6 {[%clk 0:02:55]} 7. a4 {[%clk 0:02:30]}  Ba6 {[%clk 0:02:54]} 8. Bxa6 {[%clk 0:02:24]}  Nxa6 {[%clk 0:02:55]} 9. Ne2 {[%clk 0:02:25]}  c5 {[%clk 0:02:51]} 10. O-O {[%clk 0:02:23]}  Rc8 {[%clk 0:02:50]} 11. Ba3 {[%clk 0:02:20]}  O-O {[%clk 0:02:42]} 12. Qd3 {[%clk 0:02:10]}  Nb8 {[%clk 0:02:38]} 13. c4 {[%clk 0:01:44]}  dxc4 {[%clk 0:02:20]} 14. Qxc4 {[%clk 0:01:45]}  cxd4 {[%clk 0:02:20]} 15. Qxd4 {[%clk 0:01:32]}  Nf5 {[%clk 0:02:11]} 16. Qe4 {[%clk 0:01:24]}  Re8 {[%clk 0:02:08]} 17. Rfd1 {[%clk 0:01:09]}  Qg5 {[%clk 0:02:00]} 18. Ng3 {[%clk 0:00:55]}  Nc6 {[%clk 0:01:51]} 19. Bd6 {[%clk 0:00:39]}  Nxg3 {[%clk 0:01:46]} 20. hxg3 {[%clk 0:00:37]}  Na5 {[%clk 0:01:41]} 21. Rd4 {[%clk 0:00:32]}  Qg6 {[%clk 0:01:35]} 22. Rc1 {[%clk 0:00:14]}  Nb3 {[%clk 0:01:26]} 0-1


[Site "https://www.chess.com"]

[Event "Titled Tuesday Blitz June 6 Late 2023"]
[White "Shapiro, Daniel"]
[Black "Goryachkina, Aleksandra"]
[WhiteFideId "2001780"]
[BlackFideId "4147103"]
[WhiteElo "2365"]
[BlackElo "2471"]
[Result "0-1"]
[Round "1"]
[TimeControl "180+2"]
[Date "2023.06.07"]
[WhiteClock "0:00:03"]
[BlackClock "0:00:04"]
[Board "111"]

1. d4 {[%clk 0:03:00]}  Nf6 {[%clk 0:02:59]} 2. c4 {[%clk 0:03:00]}  e6 {[%clk 0:02:59]} 3. g3 {[%clk 0:03:00]}  d5 {[%clk 0:02:58]} 4. Nf3 {[%clk 0:03:00]}  dxc4 {[%clk 0:02:58]} 5. Bg2 {[%clk 0:03:00]}  Bb4+ {[%clk 0:02:56]} 6. Bd2 {[%clk 0:02:54]}  a5 {[%clk 0:02:56]} 7. O-O {[%clk 0:02:42]}  O-O {[%clk 0:02:53]} 8. Qc2 {[%clk 0:02:40]}  b5 {[%clk 0:02:36]} 9. a4 {[%clk 0:02:32]}  Bxd2 {[%clk 0:02:31]} 10. Nbxd2 {[%clk 0:02:31]}  c6 {[%clk 0:02:27]} 11. b3 {[%clk 0:02:26]}  cxb3 {[%clk 0:02:16]} 12. Nxb3 {[%clk 0:02:26]}  b4 {[%clk 0:01:56]} 13. Ne5 {[%clk 0:02:17]}  Nd5 {[%clk 0:01:44]} 14. Nxc6 {[%clk 0:02:00]}  Nxc6 {[%clk 0:01:43]} 15. Qxc6 {[%clk 0:01:59]}  Bd7 {[%clk 0:01:35]} 16. Qd6 {[%clk 0:01:46]}  Nc3 {[%clk 0:01:08]} 17. Bxa8 {[%clk 0:01:11]}  Nxe2+ {[%clk 0:01:08]} 18. Kg2 {[%clk 0:01:09]}  Qxa8+ {[%clk 0:01:06]} 19. f3 {[%clk 0:01:09]}  Bc6 {[%clk 0:01:03]} 20. Nxa5 {[%clk 0:01:01]}  Qxa5 {[%clk 0:00:30]} 21. Qxc6 {[%clk 0:00:55]}  Nxd4 {[%clk 0:00:30]} 22. Qc4 {[%clk 0:00:49]}  Nf5 {[%clk 0:00:29]} 23. Qe4 {[%clk 0:00:33]}  Rb8 {[%clk 0:00:22]} 24. Rfd1 {[%clk 0:00:27]}  h6 {[%clk 0:00:19]} 25. Rd7 {[%clk 0:00:17]}  b3 {[%clk 0:00:17]} 26. Rb7 {[%clk 0:00:17]}  Rxb7 {[%clk 0:00:13]} 27. Qxb7 {[%clk 0:00:17]}  Qd2+ {[%clk 0:00:13]} 28. Kh3 {[%clk 0:00:12]}  Ne3 {[%clk 0:00:10]} 29. f4 {[%clk 0:00:12]}  g5 {[%clk 0:00:03]} 30. fxg5 {[%clk 0:00:11]}  hxg5 {[%clk 0:00:04]} 31. Rb1 {[%clk 0:00:10]}  g4+ {[%clk 0:00:04]} 32. Kh4 {[%clk 0:00:09]}  Qxh2+ {[%clk 0:00:04]} 33. Kg5 {[%clk 0:00:09]}  Kg7 {[%clk 0:00:01]} 34. Kf4 {[%clk 0:00:09]}  Qf2+ {[%clk 0:00:01]} 35. Ke5 {[%clk 0:00:06]}  Qf5+ {[%clk 0:00:02]} 36. Kd6 {[%clk 0:00:06]}  Qxb1 {[%clk 0:00:03]} 37. a5 {[%clk 0:00:04]}  Nf5+ {[%clk 0:00:03]} 38. Kd7 {[%clk 0:00:03]}  b2 {[%clk 0:00:04]} 39. a6 {[%clk 0:00:04]}  Qd1+ {[%clk 0:00:04]} 40. Ke8 {[%clk 0:00:03]}  Nd6+ {[%clk 0:00:04]} 0-1


[Site "https://www.chess.com"]

[Event "Titled Tuesday Blitz June 6 Late 2023"]
[White "Popilski, Gil"]
[Black "Rodrigues, Bruno Morado"]
[WhiteFideId "2809060"]
[BlackFideId "2115654"]
[WhiteElo "2537"]
[BlackElo "2040"]
[Result "1-0"]
[Round "1"]
[TimeControl "180+2"]
[Date "2023.06.07"]
[WhiteClock "0:00:40"]
[BlackClock "0:01:11"]
[Board "112"]

1. e4 {[%clk 0:03:00]}  c5 {[%clk 0:03:00]} 2. Nf3 {[%clk 0:03:00]}  Nc6 {[%clk 0:03:00]} 3. Bb5 {[%clk 0:02:58]}  e6 {[%clk 0:03:00]} 4. O-O {[%clk 0:02:56]}  Nge7 {[%clk 0:03:00]} 5. d4 {[%clk 0:02:55]}  cxd4 {[%clk 0:03:00]} 6. Nxd4 {[%clk 0:02:56]}  Qc7 {[%clk 0:02:59]} 7. Nxc6 {[%clk 0:02:52]}  bxc6 {[%clk 0:02:57]} 8. Bd3 {[%clk 0:02:51]}  Ng6 {[%clk 0:02:53]} 9. Qg4 {[%clk 0:02:46]}  Bc5 {[%clk 0:02:49]} 10. Nd2 {[%clk 0:02:41]}  O-O {[%clk 0:02:48]} 11. Nf3 {[%clk 0:02:40]}  d5 {[%clk 0:02:41]} 12. h4 {[%clk 0:02:29]}  f5 {[%clk 0:02:39]} 13. exf5 {[%clk 0:02:28]}  exf5 {[%clk 0:02:40]} 14. Qg5 {[%clk 0:02:22]}  Be7 {[%clk 0:02:27]} 15. Qd2 {[%clk 0:02:16]}  Nxh4 {[%clk 0:02:25]} 16. Nxh4 {[%clk 0:02:11]}  Bxh4 {[%clk 0:02:25]} 17. c4 {[%clk 0:02:10]}  f4 {[%clk 0:02:16]} 18. cxd5 {[%clk 0:02:07]}  cxd5 {[%clk 0:02:17]} 19. Qb4 {[%clk 0:01:04]}  Rb8 {[%clk 0:02:08]} 20. Qa4 {[%clk 0:00:59]}  Rb6 {[%clk 0:01:55]} 21. Bd2 {[%clk 0:00:55]}  Rxb2 {[%clk 0:01:39]} 22. Rac1 {[%clk 0:00:52]}  Qd6 {[%clk 0:01:37]} 23. Bc3 {[%clk 0:00:49]}  Rb6 {[%clk 0:01:33]} 24. Qxa7 {[%clk 0:00:42]}  f3 {[%clk 0:01:11]} 25. Qxg7# {[%clk 0:00:40]} 1-0


[Site "https://www.chess.com"]